Workbook

Sheet Introduction
D1: INTRODUCTION | J1: DISCLAIMER: The Louisiana Department of Transportation and Development (LaDOTD) makes these documents and software available on an "as is" basis. All warranties and representations of any kind with regard to said documents and software are disclaimed, including the implied warranties of merchantability and fitness for a particular use. Under no circumstances will the LaDOTD, or any of its officers or employees be liable for any consequential, incidental, special or exemplary damages even if apprised of the likelihood of such damages occurring. The LaDOTD does not warrant the documents and software against deficiencies of any kind. The use of any of these documents and software for work that is under contract with the LaDOTD does not relieve the contractor from any obligations assumed by the contract, or from complete and proper fulfillment of the terms of the contract, nor does it entitle the contractor to compensation for damages or loss which could be attributed to such use. Information on this web site is posted to aid in the efficient dissemination of information to designers. The data contained within this web site is periodically updated. Designers are responsible to be aware of any updates and incorporate significant changes into their final design.
D3: Date: | E3: 2020-01-02
D4: Version: | E4: 1.0
C6: Developed By: | E6: Qiming Chen
B7: Checked By: | E7: Suba Herath
C8: Reviewed By: | D8: QA | E8: Yan "Seraphy" Shen
C10: Maintained By: | E10: Qiming Chen
D11: Email: | E11: qiming.chen@la.gov
D12: Phone: | E12: 225-379-1412
A14: Genearl: This spreadsheet is designed to aid a qualified engineer in completing the bridge load rating analysis of a smooth steel pipe culvert structure (DOTD culvert structure type: smooth STLPIP, RRTKCR). Sound engineering judgement and familiariry with the analysis are required to choose appropriate input values and to recognize situations that may deviate from the standard case on which these spreadsheets based. This spreadsheet is comprised of nine worksheets: Introduction, Input, Deisng Load Rating, State Legal Load Rating, SHV load rating, Summary, Modulus of Soil Reaction, Options, and Calcs. The Input and Summary worksheets are protected. The passoword is "Rating".
A16: Input Worksheet: Yellow shaded cells are required input, please input a appropriate value or choose a appropriate option from the drop-down list.
A18: Design Load Rating: This worksheet will be updated automatically after inputting the appropriate values in the Input worksheet. This worksheet contains rating factors for HL-93 design truck and tandem.
A20: State Legal Load Rating: This worksheet will be updated automatically after inputting the appropriate values in the Input worksheet. This worksheet contains rating factors for state legal loads: LA Type 3, LA Type 3-S2, Type 3-3, LA Type 6, and LA Type 8.
A22: SHV Load Rating: This worksheet will be updated automatically after inputting the appropriate values in the Input worksheet. This worksheet contains rating factors for special hauling vehicles: NRL, SU4, SU5, SU6, and SU7.
A24: Summary Worksheet: This worksheet will be updated automatically after inputting the appropriate values in the Input worksheet. This worksheet contains the general information and rating factors of the smooth steel pipe defined in the Input worksheet
A26: Modulus of Soil Reaction: This worksheet is a reference table that is reproduced from AWWA's Steel Pipe Design Manual
A28: Options Worksheet (Hidden): This worksheet contains tabulated values that are accessed using lookup funcions based on selections from the drop down cells in the Input worksheet.
A30: Calcs Worksheet (Hidden): This worksheet contains the calculations to obtain rating weigtht, governing rating factor, governing load model, and recommended posting load in the Summary Worksheet.
A32: References:
A33: AASHTO LRFD Bridge Design Specifications, Eighth Edition, Section 3, 4 & 12.
A34: AWWA M11 Steel Pipe: A Guide for Design and Installation, Fifth Edition.
A35: ALA Guideline for the Design of Buried Steel Pipe, July 2001.
A36: NRCS, NEH 636 Chap. 52 Structural Design of Flexible Conduits, June 2005.
A37: LaDOTD Bridge Design & Evaluation Manual REV 7, Section 6.
A38: AASHTO Manual for Bridge Evaluation, Third Edition.

Sheet Input
A1: Bridge Data
A3: District | B3: 2 | D3: Structure Number | E3: 2264300100701 | I3: Bridge Name | K3: Drain Canal
A4: Parish | B4: 26 | D4: Recall Number | E4: 20459 | I4: Inspection Date | K4: 02/12/2018
A5: Route | B5: LA 3139 | D5: Year Built | E5: 1986 | I5: Overall | K5: 7
A6: Bridge Posting | B6: - | D6: Design Load | E6: - | I6: Deck | K6: N
A7: Bridge Type | B7: STLPIP | D7: Roadway Width | E7: 38 | I7: Super | K7: N
A8: Bridge Length | B8: 25 | D8: Plan Location | I8: Sub | K8: N
A9: Standard Plan
A11: Bridge Load Rating Summary
A13: Dead Load | E13: LRFR Evaluation Factors | J13: Traffic
A14: Surface Thickness (in) | D14: 63 | E14: Condition Factor (φc)* | F14: - | J14: ADTT (one way) | M14: 200 | O14: Yellow shaded areas are required input.
A15: Wearing Surface Type | D15: - | E15: System Factor (φs) | F15: 1 | O15: Input a value or choose a option from a drop-down list.
A16: Non-Structural Attachments | D16: - | E16: Surface Rating | F16: -
A17: *Condition is already considered at element level.
A19: Pipe Information
A20: Basic Information
A21: Pipe Type | C21: Circular
A22: Pipe Size (in) | C22: 96 | D22: Inside Diameter
A23: Wall Thickness (in) | C23: 1.065
A24: Yield Stress (ksi) | C24: 33
A26: Lining and Coating Type
A27: Flexible Lining and Coating
A29: Field Measurement (see the diagram)
A30: Actual Maximum Top Radius (R) (ft) | C30: 4
A31: Pipe Crown Deflection (D/Pipe Size) | C31: 0
A32: Metal Loss | B32: DOTD Type A | C32: 0
A34: Soil Properties
A35: Modulus of Soil Reaction (psi) | C35: 1000 | D35: AWWA Table 5-3
A36: Poisson's ratio of the soil, νs = | C36: 0.3
A38: Earth Loads
A39: Fill Height (ft) | C39: =D14/12 -> 5.25
A40: Soil Unit Weight (pcf) | C40: 120
A42: Water Loads | C42: No
A43: Water Unit Weight (pcf) | C43: 62.4
A44: Height of Water above Pipe (ft) | C44: 0
A46: Live Load Distribution Factor
C47: 1.15 | D47: LRFD Table 3.6.1.2.6a-1
A49: Load Factors
A50: gDC (Dead Load) = | C50: 1.25 | D50: LRFD Table 3.4.1-2
A51: gEV (Vertical Earth Pressure) = | C51: 1.95 | D51: LRFD Table 3.4.1-2
A52: gLL (HL-93 - Inventory) = | C52: 1.75 | D52: MBE Table 6A.4.2.2-1
A53: gLL (HL-93 - Operating) = | C53: 1.35 | D53: MBE Table 6A.4.2.2-1
A54: gLL (Legal Loads) = | C54: 2 | D54: MBE 6A.5.12.10.3
A55: gLL (Special Hauling Loads) = | C55: 2 | D55: MBE 6A.5.12.10.3

Sheet Design Load Rating
A1: LRFR of Smooth Steel Pipe Structures
A3: A. Design Dimensions
A5: 1. For typical structures, use the actual field measured span for calculations.
A6: 2. For those deflected over 5%, use 2 x the top radius (2 Rt) in lieu of span for calculations.
A8: Then, Span Length used in Load Rating Calculation = | D8: =IF(Input!$C$31<=5%,Input!$C$22/12,2*Input!$C$30) -> 8 | E8: ft
A9: Then, Rt used in Load Rating Calculation = | D9: =Input!$C$30 -> 4 | E9: ft
B11: Inside radius of the steel pipe, ri = | D11: =Input!$C$22/2 -> 48 | E11: in
B12: Outside radius of the steel pipe, ro = | D12: =(Input!$C$22/2+Input!$C$23) -> 49.065 | E12: in
B13: Mean radius of the steel pipe, r = | D13: =(Input!$C$22+Input!$C$23)/2 -> 48.5325 | E13: in
A15: B. Pipe Properties
A17: Mechanical Properties:
B18: Fy = Minimum Yield Point of the Steel | D18: =Input!$C$24 -> 33 | E18: ksi
B19: Fu = Minimum Tensile Strength of the Steel | D19: 45 | E19: ksi
B20: E = Modulus of Elasticity of Steel | D20: 29000 | E20: ksi
A22: Section Properties:
C23: As (in2/ft) = | D23: =Input!$C$23*12 -> 12.78
C24: I (in4/in) = | D24: =Input!$C$23^3/12 -> 0.1006624687
A26: C. Capacity:
A28: φ = Resistance Factor for wall area and buckling (LRFD Table 12.5.5-1) | D28: 1
A29: φloss = Section Properties reduction factor on the basis of metal loss from the materials field evaluation = | D29: =1-Input!$C$32 -> 1
A30: φbkl = Buckling Strength Reduction Factor = ((1-d)/(1+d)2)3 = | D30: =((1-Input!$C$31)/(1+Input!C31)^2)^3 -> 1 | E30: (NRCS NEH 636, 52-34)
A32: Calculate the qb (buckling capacity of the pipe wall) :
E34: (AWWA Eq 5-7)
A36: Scalar calibration factor to account for some nonlinear effects , Cn = | D36: 0.55
A37: Pipe wall stiffness, EI = | D37: =$D$20*1000*$D$24 -> 2919211.594 | E37: lb.in
A38: Factor to account for variability in stiffness of compacted soil, φsoil = | D38: 0.9
A39: Modulus of soil reaction, E' = | D39: =Input!$C$35 -> 1000 | E39: psi
A40: Modulus correction factor for Poisson's ratio of the soil, kv = | D40: =(1+Input!$C$36)*(1-2*Input!$C$36)/(1-Input!$C$36) -> 0.7428571429
A41: Correction factor for depth of fill, RH = | D41: =11.4/(11+2*$D$13/12/Input!$C$39) -> 0.9090391297
B43: Therefore, | C43: qb = | D43: =$D$28*Input!$F$15*$D$29*$D$30*1.2*$D$36*$D$37^0.33*($D$38*$D$39*$D$40)^0.67*$D$41/$D$12 -> 129.9395579 | E43: psi
A45: Calculate the σcap (flexural capacity of the pipe wall) :
B50: Therefore, | C50: Tcap = | D50: =$D$28*Input!$F$15*$D$29*$D$18*$D$23 -> 421.74 | E50: kips/ft
C51: σcap = | D51: =$D$28*Input!$F$15*$D$29*$D$18 -> 33 | E51: ksi
A53: D. Dead Load Analysis:
A54: Calculate the qs (pressure at crown due to earth cover) :
C56: (AWWA Eq 5-9)
C58: (AWWA Eq 5-3)
B60: Outside diameter of coated pipe (in) , Dc = | D60: =2*$D$12 -> 98.13
B61: Earth load (lb/ft), Wc = | D61: =Input!$C$40*Input!$C$39*$D$60/12 -> 5151.825
B62: Height of Water above Pipe (ft), Hw = | D62: =IF(Input!$C$42="Yes",Input!$C$44,0) -> 0
B63: Water buoyancy factor, Rw = 1-0.33 (Hw/H) | D63: =1-0.33*D62/Input!$C$39 -> 1
B64: Outside diameter of pipe (in), D0 = | D64: =2*$D$12 -> 98.13
B66: Therefore, | C66: qs = | D66: =$D$63*$D$61/12/$D$64 -> 4.375 | E66: psi
A68: Calculate the qw (pressure at crown due to water) :
C70: (AWWA Eq 5-9)
B72: Therefore, | C72: qw = | D72: =Input!$C$43*$D$62/144 -> 0 | E72: psi
A74: Calculate the σS (circumferential stress due to earth cover) :
B75: TE = higher value of : | C75: 1. γs H (S/2) = | D75: =Input!$C$40*Input!$C$39*$D$8/2/1000 -> 2.52 | E75: kips/ft
C76: 2. γs H Rt = | D76: =Input!$C$40*Input!$C$39*$D$9/1000 -> 2.52 | E76: kips/ft
B78: Therefore, | C78: TS = | D78: =MAX($D$75,$D$76) -> 2.52 | E78: kips/ft
C79: σS = TS/As = | D79: =D78/$D$23 -> 0.1971830986 | E79: ksi
A81: Calculate the σW (circumferential stress due to water) :
B82: TE = higher value of : | C82: 1. γw Hw (S/2) = | D82: =Input!$C$43*D62*$D$8/2/1000 -> 0 | E82: kips/ft
C83: 2. γw Hw Rt = | D83: =Input!$C$43*D62*$D$9/1000 -> 0 | E83: kips/ft
B85: Therefore, | C85: TW = | D85: =MAX($D$82,$D$83) -> 0 | E85: kips/ft
C86: σW = TW/As = | D86: =D85/$D$23 -> 0 | E86: ksi
A88: Calculate the σD_bw (Through-Wall Bending Stress)
A90: Ovality | D90: (ALA Eq 4-2)
B92: Deflection lag factor, Dl = | D92: 1
B93: Bedding constant, K = | D93: 0.1
B95: Therefore, | C95: Δy/D0 = | D95: =$D$92*$D$93*$D$66/($D$20*1000*$D$24/$D$13^3+0.061*Input!$C$35) -> 0.00505564881
D97: (ALA Eq 4-4)
B99: Therefore, | C99: σD_bw = | D99: =4*$D$20*1000*$D$95*Input!$C$23/(2*$D$12)/1000 -> 6.364769734 | E99: ksi
A101: E. Live Load Analysis:
A103: The surface tire contact area for HL-93 loading (per AASHTO LRFD 3.6.1.2.5):
C104: wt = | D104: 20 | E104: in
C105: lt = | D105: 10 | E105: in
A107: Distribution of wheel loads through earth fills (per AASHTO LRFD 3.6.1.2.6):
A108: 1. Single wheel load Distribution:
B110: For H<2 ft, ww = 96+1.44S = | D110: =(96+1.44*2*$D$11/12)/12 -> 8.96 | E110: ft
B111: For H≥2 ft, ww = wt/12+LLDF(H)+0.06Di/12 = | D111: =$D$104/12+Input!$C$47*Input!$C$39+0.06*2*$D$11/12 -> 8.184166667 | E111: ft
C112: lw = lt/12+LLDF(H) = | D112: =$D$105/12+Input!$C$47*Input!$C$39 -> 6.870833333 | E112: ft
A114: 2. Overlap Check for Fill Height, H<2 ft:
A116: For parallel to culver spans, overlap requirement is:
A117: lw≥axial spacing, for minimum axial spacing = 4 ft
A118: LLDF>(4-lt/12)*2= | B118: =(4-D105/12)/2 -> 1.583333333 | C118: which is greater than 1.15 specified in LRFD Table 3.6.1.2.6a.
D120: Therefore overlap is not considered for Fill Height, H<2 ft
A122: HL-93 Truck
B123: Pressure (psf) | C123: Multi-presence Factor (LRFD C3.6.1.1.2) | D123: IM | E123: Pressure (psi)
A124: Single Lane | B124: =32000/($D$110*$D$112) -> 519.7955471 | C124: =IF(Input!$M$14<100,0.9*1.2,IF(AND(Input!$M$14>=100,Input!$M$14<=1000),0.95*1.2,1.2)) -> 1.14 | D124: =IF(33*(1-0.125*Input!$C$39)/100>0,33*(1-0.125*Input!$C$39)/100,0) -> 0.1134375 | E124: =B124*C124*(1+D124)/144 -> 4.581848848
A125: Two Lanes
A126: Three Lanes
A127: > Three Lanes
A128: Control live load pressure at crown for Load Rating (maximum) = | E128: =E124 -> 4.581848848
A129: Only single-lane multiple presence factor is applied (MBE 6A.5.12.10.3)
A130: Live load Dynamic Load Allowance, IM = | C130: 33(1.0-0.125 DE) ≥ 0% | D130: (LRFD 3.6.2.2-1)
A132: HL-93 Tandem
B133: Pressure (psf) | C133: Multi-presence Factor (LRFD C3.6.1.1.2) | D133: IM | E133: Pressure (psi)
A134: Single Lane | B134: =25000/($D$110*$D$112) -> 406.0902712 | C134: =IF(Input!$M$14<100,0.9*1.2,IF(AND(Input!$M$14>=100,Input!$M$14<=1000),0.95*1.2,1.2)) -> 1.14 | D134: =IF(33*(1-0.125*Input!$C$39)/100>0,33*(1-0.125*Input!$C$39)/100,0) -> 0.1134375 | E134: =B134*C134*(1+D134)/144 -> 3.579569412
A135: Two Lanes
A136: Three Lanes
A137: > Three Lanes
A138: Control live load pressure at crown for Load Rating (maximum) = | E138: =E134 -> 3.579569412
A139: Only single-lane multiple presence factor is applied (MBE 6A.5.12.10.3)
A140: Live load Dynamic Load Allowance, IM = | C140: 33(1.0-0.125 DE) ≥ 0% | D140: (LRFD 3.6.2.2-1)
A142: 3. Overlap Check for Fill Height, H≥2 ft:
C143: For H<Hint-t
F144: (LFRD 3.6.1.2.6b-2)
B146: LRFD 3.6.1.2.6b-1 | C146: For H≥Hint-t
F148: (LFRD 3.6.1.2.6b-3)
C150: For H<Hint-p
F151: (LFRD 3.6.1.2.6b-5)
B153: LRFD 3.6.1.2.6b-4 | C153: For H≥Hint-p
F154: (LFRD 3.6.1.2.6b-6)
A156: HL-93 Truck
D157: Hint-t | E157: Overlap | F157: ww
A158: Transverse to culvert spans | B158: Wheel (lb) | C158: 16000
B159: Spacing, sw (ft) | C159: 6 | D159: =(C159-$D$104/12-0.06*2*$D$11/12)/Input!$C$47 -> 3.350724638 | E159: =IF(Input!$C$39<'Design Load Rating'!D159, "NO", "YES") -> YES | F159: =IF(Input!$C$39<D159,$D$104/12+Input!$C$47*Input!$C$39+0.06*$D$8*12/12,$D$104/12+C159+Input!$C$47*Input!$C$39+0.06*$D$8*12/12) -> 14.18416667
B160: Wheel (lb) | C160: 16000
D175: Hint-p | E175: Overlap | F175: lw
A176: Parallel to culvert spans | B176: Axle 1 (lb) | C176: 8000
B177: Spacing, sa (ft) | C177: 14 | D177: =(C177-$D$105/12)/Input!$C$47 -> 11.44927536 | E177: =IF(Input!$C$39<'Design Load Rating'!D177, "NO", "YES") -> NO | F177: =IF(Input!$C$39<'Design Load Rating'!D177,'Design Load Rating'!$D$105/12+Input!$C$47*Input!$C$39,'Design Load Rating'!$D$105/12+C177+Input!$C$47*Input!$C$39) -> 6.870833333 | H177: Gray shaded areas are wheels and axles not considered in analysis because of axle spacing.
B178: Axle 2 (lb) | C178: 32000
B179: Spacing, sa (ft) | C179: 14 | D179: =(C179-$D$105/12)/Input!$C$47 -> 11.44927536 | E179: =IF(Input!$C$39<'Design Load Rating'!D179, "NO", "YES") -> NO | F179: =IF(Input!$C$39<'Design Load Rating'!D179,'Design Load Rating'!$D$105/12+Input!$C$47*Input!$C$39,'Design Load Rating'!$D$105/12+C179+Input!$C$47*Input!$C$39) -> 6.870833333
B180: Axle 3 (lb) | C180: 32000
B182: Pressure (psf) | C182: Multi-presence Factor (LRFD C3.6.1.1.2) | D182: IM | E182: Pressure (psi)
A183: Single Lane | B183: =IF($E$159="NO",$C$158/($D$111*$D$112),IF($E$179="NO",2*$C$158/($F$159*$F$179),4*$C$158/($F$159*$F$179))) -> 328.3497869 | C183: =IF(Input!$M$14<100,0.9*1.2,IF(AND(Input!$M$14>=100,Input!$M$14<=1000),0.95*1.2,1.2)) -> 1.14 | D183: =IF(33*(1-0.125*Input!$C$39)/100>0,33*(1-0.125*Input!$C$39)/100,0) -> 0.1134375 | E183: =B183*C183*(1+D183)/144 -> 2.894309313
A184: Two Lanes
A185: Three Lanes
A186: > Three Lanes
A187: Control live load pressure at crown for Load Rating (maximum) = | E187: =E183 -> 2.894309313
A188: Only single-lane multiple presence factor is applied (MBE 6A.5.12.10.3)
A189: Live load Dynamic Load Allowance, IM = | C189: 33(1.0-0.125 DE) ≥ 0% | D189: (LRFD 3.6.2.2-1)
A191: HL-93 Tandem
D192: Hint-t | E192: Overlap | F192: ww
A193: Transverse to culvert spans | B193: Wheel (lb) | C193: 12500
B194: Spacing, sw (ft) | C194: 6 | D194: =(C194-$D$104/12-0.06*2*$D$11/12)/Input!$C$47 -> 3.350724638 | E194: =IF(Input!$C$39<'Design Load Rating'!D194, "NO", "YES") -> YES | F194: =IF(Input!$C$39<D194,$D$104/12+Input!$C$47*Input!$C$39+0.06*$D$8*12/12,$D$104/12+C194+Input!$C$47*Input!$C$39+0.06*$D$8*12/12) -> 14.18416667
B195: Wheel (lb) | C195: 12500
D209: Hint-p | E209: Overlap | F209: lw
A210: Parallel to culvert spans | B210: Axle 1 (lb) | C210: 25000
B211: Spacing, sa (ft) | C211: 4 | D211: =(C211-$D$105/12)/Input!$C$47 -> 2.753623188 | E211: =IF(Input!$C$39<'Design Load Rating'!D211, "NO", "YES") -> YES | F211: =IF(Input!$C$39<'Design Load Rating'!D211,'Design Load Rating'!$D$105/12+Input!$C$47*Input!$C$39,'Design Load Rating'!$D$105/12+C211+Input!$C$47*Input!$C$39) -> 10.87083333
B212: Axle 2 (lb) | C212: 25000
B214: Pressure (psf) | C214: Multi-presence Factor (LRFD C3.6.1.1.2) | D214: IM | E214: Pressure (psi)
A215: Single Lane | B215: =IF(E211="NO",C193/($D$111*$D$112),IF(E194="NO",2*C193/($F$194*$F$211),4*C193/($F$194*$F$211))) -> 324.2674388 | C215: =IF(Input!$M$14<100,0.9*1.2,IF(AND(Input!$M$14>=100,Input!$M$14<=1000),0.95*1.2,1.2)) -> 1.14 | D215: =IF(33*(1-0.125*Input!$C$39)/100>0,33*(1-0.125*Input!$C$39)/100,0) -> 0.1134375 | E215: =B215*C215*(1+D215)/144 -> 2.858324584
A216: Two Lanes
A217: Three Lanes
A218: > Three Lanes
A219: Control live load pressure at crown for Load Rating (maximum) = | E219: =E215 -> 2.858324584
A220: Only single-lane multiple presence factor is applied (MBE 6A.5.12.10.3)
A221: Live load Dynamic Load Allowance, IM = | C221: 33(1.0-0.125 DE) ≥ 0% | D221: (LRFD 3.6.2.2-1)
A223: Calculate the qL (pressure at crown due to live load) :
A225: HL-93 Truck | B225: qL= | C225: =IF(Input!$C$39<2,'Design Load Rating'!E128,'Design Load Rating'!E187) -> 2.894309313 | D225: psi
A227: HL-93 Tandem | B227: qL= | C227: =IF(Input!$C$39<2,'Design Load Rating'!E138,'Design Load Rating'!E219) -> 2.858324584 | D227: psi
A229: Calculate the σL (circumferential stress due to live load plus dynamic load allowance) :
A230: HL-93 Truck | B230: Tl = higher value of : | C230: 1. ql(S/2) = | D230: =E187*$D$8/2*144/1000 -> 1.667122164 | E230: kips/ft
C231: 2. qlRt = | D231: =E187*$D$9*144/1000 -> 1.667122164 | E231: kips/ft
B233: Therefore, | C233: TL = | D233: =MAX(D230,D231) -> 1.667122164 | E233: kips/ft
C234: σL = TL/As = | D234: =D233/$D$23 -> 0.1304477437 | E234: ksi
A236: HL-93 Tandem | B236: Tl = higher value of : | C236: 1. ql(S/2) = | D236: =E219*$D$8/2*144/1000 -> 1.64639496 | E236: kips/ft
C237: 2. qlRt = | D237: =E219*$D$9*144/1000 -> 1.64639496 | E237: kips/ft
B239: Therefore, | C239: TL = | D239: =MAX(D236,D237) -> 1.64639496 | E239: kips/ft
C240: σL = TL/As = | D240: =D239/$D$23 -> 0.1288258967 | E240: ksi
A242: Calculate the σL_bw (Through-Wall Bending Stress)
A243: HL-93 Truck | C243: Δy/D0 = | D243: =$D$92*$D$93*C225/($D$20*1000*$D$24/$D$13^3+0.061*Input!$C$35) -> 0.003344596899
C244: σL_bw = | D244: =4*$D$20*1000*D243*Input!$C$23/(2*$D$12)/1000 -> 4.210654243 | E244: ksi
A246: HL-93 Tandem | C246: Δy/D0 = | D246: =$D$92*$D$93*C227/($D$20*1000*$D$24/$D$13^3+0.061*Input!$C$35) -> 0.003303013778
C247: σL_bw = | D247: =4*$D$20*1000*D246*Input!$C$23/(2*$D$12)/1000 -> 4.158303497 | E247: ksi
A250: F. Load Rating Analysis
A251: I. Rating based on buckling
A252: 1. Operating Load Rating Factor (RFO):
A256: Operating Load Rating Factors, RFO
B257: HL-93 Truck | C257: HL-93 Tandem
A258: qb | B258: =$D$43 -> 129.9395579 | C258: =$D$43 -> 129.9395579
A259: qs | B259: =$D$66 -> 4.375 | C259: =$D$66 -> 4.375
A260: qw | B260: =$D$72 -> 0 | C260: =$D$72 -> 0
A261: gEV | B261: =Input!$C$51 -> 1.95 | C261: =Input!$C$51 -> 1.95
A262: ql | B262: =$C$225 -> 2.894309313 | C262: =$C$227 -> 2.858324584
A263: gLL | B263: =Input!$C$53 -> 1.35 | C263: =Input!$C$53 -> 1.35
A264: RFo-b | B264: =(B258-B261*B259)/(B262*B263) -> 31.07203488 | C264: =(C258-C261*C259)/(C262*C263) -> 31.46321465
A266: 2. Inventory Load Rating Factor (RFi):
A270: Inventory Load Rating Factor, RFi
B271: HL-93 Truck | C271: HL-93 Tandem
A272: qb | B272: =$D$43 -> 129.9395579 | C272: =$D$43 -> 129.9395579
A273: qs | B273: =$D$66 -> 4.375 | C273: =$D$66 -> 4.375
A274: qw | B274: =$D$72 -> 0 | C274: =$D$72 -> 0
A275: gEV | B275: =Input!$C$51 -> 1.95 | C275: =Input!$C$51 -> 1.95
A276: ql | B276: =$C$225 -> 2.894309313 | C276: =$C$227 -> 2.858324584
A277: gLL | B277: =Input!$C$52 -> 1.75 | C277: =Input!$C$52 -> 1.75
A278: RFi-b | B278: =(B272-B275*B273)/(B276*B277) -> 23.96985548 | C278: =(C272-C275*C273)/(C276*C277) -> 24.27162273
A280: II. Rating based on flexure
A281: 1. Operating Load Rating Factor (RFO):
A285: Operating Load Rating Factors, RFO
B286: HL-93 Truck | C286: HL-93 Tandem
A287: σcap | B287: =$D$51 -> 33 | C287: =$D$51 -> 33
A288: σS | B288: =$D$79 -> 0.1971830986 | C288: =$D$79 -> 0.1971830986
A289: σW | B289: =$D$86 -> 0 | C289: =$D$86 -> 0
A290: σD_bw | B290: =$D$99 -> 6.364769734 | C290: =$D$99 -> 6.364769734
A291: gEV | B291: =Input!$C$51 -> 1.95 | C291: =Input!$C$51 -> 1.95
A292: σL | B292: =$D$234 -> 0.1304477437 | C292: =$D$240 -> 0.1288258967
A293: σL_bw | B293: =$D$244 -> 4.210654243 | C293: =$D$247 -> 4.158303497
A294: gLL | B294: =Input!$C$53 -> 1.35 | C294: =Input!$C$53 -> 1.35
A295: RFo-f | B295: =(B287-B291*(B288+B289+B290))/(B294*(B292+B293)) -> 3.44752742 | C295: =(C287-C291*(C288+C289+C290))/(C294*(C292+C293)) -> 3.490929888
A298: 2. Inventory Load Rating Factor (RFi):
A302: Inventory Load Rating Factor, RFi
B303: HL-93 Truck | C303: HL-93 Tandem
A304: σcap | B304: =$D$51 -> 33 | C304: =$D$51 -> 33
A305: σS | B305: =$D$79 -> 0.1971830986 | C305: =$D$79 -> 0.1971830986
A306: σW | B306: =$D$86 -> 0 | C306: =$D$86 -> 0
A307: σD_bw | B307: =$D$99 -> 6.364769734 | C307: =$D$99 -> 6.364769734
A308: gEV | B308: =Input!$C$51 -> 1.95 | C308: =Input!$C$51 -> 1.95
... 11 more rows

Sheet State Legal Load Rating
A1: LRFR of Smooth Steel Pipe Structures
A3: A. Design Dimensions
A5: 1. For typical structures, use the actual field measured span for calculations.
A6: 2. For those deflected over 5%, use 2 x the top radius (2 Rt) in lieu of span for calculations.
A8: Then, Span Length used in Load Rating Calculation = | D8: ='Design Load Rating'!D8 -> 8 | E8: ft
A9: Then, Rt used in Load Rating Calculation = | D9: ='Design Load Rating'!D9 -> 4 | E9: ft
B11: Inside radius of the steel pipe, ri = | D11: ='Design Load Rating'!D11 -> 48 | E11: in
B12: Outside radius of the steel pipe, ro = | D12: ='Design Load Rating'!D12 -> 49.065 | E12: in
B13: Mean radius of the steel pipe, r = | D13: ='Design Load Rating'!D13 -> 48.5325 | E13: in
A15: B. Pipe Properties
A17: Mechanical Properties:
B18: Fy = Minimum Yield Point of the Steel | D18: ='Design Load Rating'!D18 -> 33 | E18: ksi
B19: Fu = Minimum Tensile Strength of the Steel | D19: ='Design Load Rating'!D19 -> 45 | E19: ksi
B20: E = Modulus of Elasticity of Steel | D20: ='Design Load Rating'!D20 -> 29000 | E20: ksi
A22: Section Properties:
C23: As (in2/ft) = | D23: ='Design Load Rating'!D23 -> 12.78
C24: I (in4/in) = | D24: ='Design Load Rating'!D24 -> 0.1006624687
A26: C. Capacity:
A28: φ = Resistance Factor for wall area and buckling (LRFD Table 12.5.5-1) | D28: ='Design Load Rating'!D28 -> 1
A29: φloss = Section Properties reduction factor on the basis of metal loss from the materials field evaluation = | D29: ='Design Load Rating'!D29 -> 1
A30: φbkl = Buckling Strength Reduction Factor = ((1-d)/(1+d)2)3 = | D30: ='Design Load Rating'!D30 -> 1 | E30: (NRCS NEH 636, 52-34)
A32: Calculate the qb (buckling capacity of the pipe wall) :
E34: (AWWA Eq 5-7)
A36: Scalar calibration factor to account for some nonlinear effects , Cn = | D36: 0.55
A37: Pipe wall stiffness, EI = | D37: =$D$20*1000*$D$24 -> 2919211.594 | E37: lb.in
A38: Factor to account for variability in stiffness of compacted soil, φsoil = | D38: 0.9
A39: Modulus of soil reaction, E' = | D39: =Input!$C$35 -> 1000 | E39: psi
A40: Modulus correction factor for Poisson's ratio of the soil, kv = | D40: =(1+Input!$C$36)*(1-2*Input!$C$36)/(1-Input!$C$36) -> 0.7428571429
A41: Correction factor for depth of fill, RH = | D41: =11.4/(11+2*$D$13/12/Input!$C$39) -> 0.9090391297
B43: Therefore, | C43: qb = | D43: =$D$28*Input!F15*$D$29*$D$30*1.2*$D$36*$D$37^0.33*($D$38*$D$39*$D$40)^0.67*$D$41/$D$12 -> 129.9395579 | E43: psi
A45: Calculate the σcap (flexural capacity of the pipe wall) :
B50: Therefore, | C50: Tcap = | D50: =$D$28*Input!F15*$D$29*$D$18*$D$23 -> 421.74 | E50: kips/ft
C51: σcap = | D51: =$D$28*Input!$F$15*$D$29*$D$18 -> 33 | E51: ksi
A53: D. Dead Load Analysis:
A54: Calculate the qs (pressure at crown due to earth cover) :
C56: (AWWA Eq 5-9)
C58: (AWWA Eq 5-3)
B60: Outside diameter of coated pipe (in) , Dc = | D60: =2*$D$12 -> 98.13
B61: Earth load (lb/ft), Wc = | D61: =Input!$C$40*Input!$C$39*$D$60/12 -> 5151.825
B62: Height of Water above Pipe (ft), Hw = | D62: =IF(Input!$C$42="Yes",Input!$C$44,0) -> 0
B63: Water buoyancy factor, Rw = 1-0.33 (Hw/H) | D63: =1-0.33*D62/Input!$C$39 -> 1
B64: Outside diameter of pipe (in), D0 = | D64: =2*$D$12 -> 98.13
B66: Therefore, | C66: qs = | D66: =$D$63*$D$61/12/$D$64 -> 4.375 | E66: psi
A68: Calculate the qw (pressure at crown due to water) :
C70: (AWWA Eq 5-9)
B72: Therefore, | C72: qw = | D72: =Input!$C$43*$D$62/144 -> 0 | E72: psi
A74: Calculate the σS (circumferential stress due to earth cover) :
B75: TE = higher value of : | C75: 1. γs H (S/2) = | D75: =Input!$C$40*Input!$C$39*$D$8/2/1000 -> 2.52 | E75: kips/ft
C76: 2. γs H Rt = | D76: =Input!$C$40*Input!$C$39*$D$9/1000 -> 2.52 | E76: kips/ft
B78: Therefore, | C78: TS = | D78: =MAX($D$75,$D$76) -> 2.52 | E78: kips/ft
C79: σS = TS/As = | D79: =D78/$D$23 -> 0.1971830986 | E79: ksi
A81: Calculate the σW (circumferential stress due to water) :
B82: TE = higher value of : | C82: 1. γw Hw (S/2) = | D82: =Input!$C$43*D62*$D$8/2/1000 -> 0 | E82: kips/ft
C83: 2. γw Hw Rt = | D83: =Input!$C$43*D62*$D$9/1000 -> 0 | E83: kips/ft
B85: Therefore, | C85: TW = | D85: =MAX($D$82,$D$83) -> 0 | E85: kips/ft
C86: σW = TW/As = | D86: =D85/$D$23 -> 0 | E86: ksi
A88: Calculate the σD_bw (Through-Wall Bending Stress)
A90: Ovality | D90: (ALA Eq 4-2)
B92: Deflection lag factor, Dl = | D92: ='Design Load Rating'!D92 -> 1
B93: Bedding constant, K = | D93: ='Design Load Rating'!D93 -> 0.1
B95: Therefore, | C95: Δy/D0 = | D95: =$D$92*$D$93*$D$66/($D$20*1000*$D$24/$D$13^3+0.061*Input!$C$35) -> 0.00505564881
D97: (ALA Eq 4-4)
B99: Therefore, | C99: σD_bw = | D99: =4*$D$20*1000*$D$95*Input!$C$23/(2*$D$12)/1000 -> 6.364769734 | E99: ksi
A101: E. Live Load Analysis:
A103: The surface tire contact area for legal loading (per AASHTO LRFD C3.6.1.2.5):
B104: P (kips) | C104: wt (in) = P/0.8 | D104: lt (in) = 6.4γ(1+IM/100)
A105: LA Type 3 | B105: 8 | C105: =B105/0.8 -> 10 | D105: =6.4*Input!$C$54*(1+$D$137) -> 14.252
A106: LA Type 3s2 | B106: 8 | C106: =B106/0.8 -> 10 | D106: =6.4*Input!$C$54*(1+$D$137) -> 14.252
A107: Type 3-3 | B107: 8 | C107: =B107/0.8 -> 10 | D107: =6.4*Input!$C$54*(1+$D$137) -> 14.252
A108: LA Type 6 | B108: 9.25 | C108: =B108/0.8 -> 11.5625 | D108: =6.4*Input!$C$54*(1+$D$137) -> 14.252
A109: LA Type 8 | B109: 9.25 | C109: =B109/0.8 -> 11.5625 | D109: =6.4*Input!$C$54*(1+$D$137) -> 14.252
A111: Distribution of wheel loads through earth fills (per AASHTO LRFD 3.6.1.2.6):
A112: 1. Single wheel load Distribution:
B113: ww | E113: lw
B114: H<2 ft | C114: H≥2 ft
B115: 96+1.44S | C115: wt/12+LLDF(H)+0.06Di/12 | E115: lt/12+LLDF(H)
A116: LA Type 3 | B116: =(96+1.44*$D$8)/12 -> 8.96 | C116: =C105/12+Input!$C$47*Input!$C$39+0.06*2*$D$11/12 -> 7.350833333 | E116: =D105/12+Input!$C$47*Input!$C$39 -> 7.225166667
A117: LA Type 3s2 | B117: =(96+1.44*$D$8)/12 -> 8.96 | C117: =C106/12+Input!$C$47*Input!$C$39+0.06*2*$D$11/12 -> 7.350833333 | E117: =D106/12+Input!$C$47*Input!$C$39 -> 7.225166667
A118: Type 3-3 | B118: 8.96 | C118: =C107/12+Input!$C$47*Input!$C$39+0.06*2*$D$11/12 -> 7.350833333 | E118: =D107/12+Input!$C$47*Input!$C$39 -> 7.225166667
A119: LA Type 6 | B119: 8.96 | C119: =C108/12+Input!$C$47*Input!$C$39+0.06*2*$D$11/12 -> 7.481041667 | E119: =D108/12+Input!$C$47*Input!$C$39 -> 7.225166667
A120: LA Type 8 | B120: 8.96 | C120: =C109/12+Input!$C$47*Input!$C$39+0.06*2*$D$11/12 -> 7.481041667 | E120: =D109/12+Input!$C$47*Input!$C$39 -> 7.225166667
A122: 2. Overlap Check for Fill Height, H<2 ft:
A124: For parallel to culver spans, overlap requirement is:
A125: lw≥axial spacing, for minimum axial spacing = 4 ft
B126: LLDF>(4-lt/12)*2
A127: LA Type 3 | B127: =(4-D105/12)/2 -> 1.406166667
A128: LA Type 3s2 | B128: =(4-D106/12)/2 -> 1.406166667
A129: Type 3-3 | B129: =(4-D107/12)/2 -> 1.406166667
A130: LA Type 6 | B130: =(4-D108/12)/2 -> 1.406166667
A131: LA Type 8 | B131: =(4-D109/12)/2 -> 1.406166667 | C131: which is greater than 1.15 specified in LRFD Table 3.6.1.2.6a.
D133: Therefore overlap is not considered for Fill Height, H<2 ft
A135: LA Type 3
B136: Pressure (psf) | C136: Multi-presence Factor (MBE 6A.5.12.10.3) | D136: IM | E136: Pressure (psi)
A137: Single Lane | B137: =16000/($B$116*$E$116) -> 247.1519853 | C137: 1 | D137: =IF(33*(1-0.125*Input!$C$39)/100>0,33*(1-0.125*Input!$C$39)/100,0) -> 0.1134375 | E137: =B137*C137*(1+D137)/144 -> 1.911029782
A138: Two Lanes
A139: Three Lanes
A140: > Three Lanes
A141: Control live load pressure at crown for Load Rating (maximum) = | E141: =E137 -> 1.911029782
A142: Only the single-lane loaded condition needs to be checked (MBE 6A.5.12.10.3)
A143: Live load Dynamic Load Allowance, IM = | C143: 33(1.0-0.125 DE) ≥ 0% | D143: (LRFD 3.6.2.2-1)
A145: LA Type 3s2
B146: Pressure (psf) | C146: Multi-presence Factor (MBE 6A.5.12.10.3) | D146: IM | E146: Pressure (psi)
A147: Single Lane | B147: =16000/($B$117*$E$117) -> 247.1519853 | C147: 1 | D147: =IF(33*(1-0.125*Input!$C$39)/100>0,33*(1-0.125*Input!$C$39)/100,0) -> 0.1134375 | E147: =B147*C147*(1+D147)/144 -> 1.911029782
A148: Two Lanes
A149: Three Lanes
A150: > Three Lanes
A151: Control live load pressure at crown for Load Rating (maximum) = | E151: =E147 -> 1.911029782
A152: Only the single-lane loaded condition needs to be checked (MBE 6A.5.12.10.3)
A153: Live load Dynamic Load Allowance, IM = | C153: 33(1.0-0.125 DE) ≥ 0% | D153: (LRFD 3.6.2.2-1)
A155: Type 3-3
B156: Pressure (psf) | C156: Multi-presence Factor (MBE 6A.5.12.10.3) | D156: IM | E156: Pressure (psi)
A157: Single Lane | B157: =16000/($B$118*$E$118) -> 247.1519853 | C157: 1 | D157: =IF(33*(1-0.125*Input!$C$39)/100>0,33*(1-0.125*Input!$C$39)/100,0) -> 0.1134375 | E157: =B157*C157*(1+D157)/144 -> 1.911029782
A158: Two Lanes
A159: Three Lanes
A160: > Three Lanes
A161: Control live load pressure at crown for Load Rating (maximum) = | E161: =E157 -> 1.911029782
A162: Only the single-lane loaded condition needs to be checked (MBE 6A.5.12.10.3)
A163: Live load Dynamic Load Allowance, IM = | C163: 33(1.0-0.125 DE) ≥ 0% | D163: (LRFD 3.6.2.2-1)
A165: LA Type 6
B166: Pressure (psf) | C166: Multi-presence Factor (MBE 6A.5.12.10.3) | D166: IM | E166: Pressure (psi)
A167: Single Lane | B167: =18500/($B$119*$E$119) -> 285.769483 | C167: 1 | D167: =IF(33*(1-0.125*Input!$C$39)/100>0,33*(1-0.125*Input!$C$39)/100,0) -> 0.1134375 | E167: =B167*C167*(1+D167)/144 -> 2.209628186
A168: Two Lanes
A169: Three Lanes
A170: > Three Lanes
A171: Control live load pressure at crown for Load Rating (maximum) = | E171: =E167 -> 2.209628186
A172: Only the single-lane loaded condition needs to be checked (MBE 6A.5.12.10.3)
A173: Live load Dynamic Load Allowance, IM = | C173: 33(1.0-0.125 DE) ≥ 0% | D173: (LRFD 3.6.2.2-1)
A175: LA Type 8
B176: Pressure (psf) | C176: Multi-presence Factor (MBE 6A.5.12.10.3) | D176: IM | E176: Pressure (psi)
A177: Single Lane | B177: =18500/($B$120*$E$120) -> 285.769483 | C177: 1 | D177: =IF(33*(1-0.125*Input!$C$39)/100>0,33*(1-0.125*Input!$C$39)/100,0) -> 0.1134375 | E177: =B177*C177*(1+D177)/144 -> 2.209628186
A178: Two Lanes
A179: Three Lanes
A180: > Three Lanes
A181: Control live load pressure at crown for Load Rating (maximum) = | E181: =E177 -> 2.209628186
A182: Only the single-lane loaded condition needs to be checked (MBE 6A.5.12.10.3)
A183: Live load Dynamic Load Allowance, IM = | C183: 33(1.0-0.125 DE) ≥ 0% | D183: (LRFD 3.6.2.2-1)
A185: 3. Overlap Check for Fill Height, H≥2 ft:
C186: For H<Hint-t
F187: (LFRD 3.6.1.2.6b-2)
B189: LRFD 3.6.1.2.6b-1 | C189: For H≥Hint-t
F191: (LFRD 3.6.1.2.6b-3)
C193: For H<Hint-p
F194: (LFRD 3.6.1.2.6b-5)
B196: LRFD 3.6.1.2.6b-4 | C196: For H≥Hint-p
F197: (LFRD 3.6.1.2.6b-6)
A199: LA Type 3
D200: Hint-t | E200: Overlap | F200: ww
A201: Transverse to culvert spans | B201: Wheel (lb) | C201: 8000 | H201: only the single-lane loaded condition needs to be chedked for legal load (MBE 6A.5.12.10.3)
B202: Spacing, sw (ft) | C202: 6 | D202: =(C202-$C$105/12-0.06*2*$D$11/12)/Input!$C$47 -> 4.075362319 | E202: =IF(Input!$C$39<'State Legal Load Rating'!D202, "NO", "YES") -> YES | F202: =IF(Input!$C$39<D202,$C$105/12+Input!$C$47*Input!$C$39+0.06*2*$D$11/12,$C$105/12+C202+Input!$C$47*Input!$C$39+0.06*2*$D$11/12) -> 13.35083333
B203: Wheel (lb) | C203: =C201 -> 8000
D218: Hint-p | E218: Overlap | F218: lw
A219: Parallel to culvert spans | B219: Axle 1 (lb) | C219: 9000
B220: Spacing, sa (ft) | C220: 8 | D220: =(C220-$D$105/12)/Input!$C$47 -> 5.923768116 | E220: =IF(Input!$C$39<'State Legal Load Rating'!D220, "NO", "YES") -> NO | F220: =IF(Input!$C$39<'State Legal Load Rating'!D220,'State Legal Load Rating'!$D$105/12+Input!$C$47*Input!$C$39,'State Legal Load Rating'!$D$105/12+C220+Input!$C$47*Input!$C$39) -> 7.225166667
B221: Axle 2 (lb) | C221: 16000
B222: Spacing, sa (ft) | C222: 4 | D222: =(C222-$D$105/12)/Input!$C$47 -> 2.445507246 | E222: =IF(Input!$C$39<'State Legal Load Rating'!D222, "NO", "YES") -> YES | F222: =IF(Input!$C$39<'State Legal Load Rating'!D222,'State Legal Load Rating'!$D$105/12+Input!$C$47*Input!$C$39,'State Legal Load Rating'!$D$105/12+C222+Input!$C$47*Input!$C$39) -> 11.22516667
B223: Axle 3 (lb) | C223: =C221 -> 16000
B225: Pressure (psf) | C225: Multi-presence Factor (MBE 6A.5.12.10.3) | D225: IM | E225: Pressure (psi)
A226: Single Lane | B226: =IF(E222="NO",C201/($C$116*$E$116),IF(E202="NO",(C221+C223)/2/(F202*F222),IF(E220="NO",(C221+C223)/(F202*F222),IF(Input!C22/12<(24-F222),(C221+C223)/(F202*F222),(C219*(F222-12)/$E$116+C221+C223)/(F202*F222))))) -> 213.5250371 | C226: 1 | D226: =IF(33*(1-0.125*Input!$C$39)/100>0,33*(1-0.125*Input!$C$39)/100,0) -> 0.1134375 | E226: =B226*C226*(1+D226)/144 -> 1.65101933
A227: Two Lanes
A228: Three Lanes
A229: > Three Lanes
A230: Control live load pressure at crown for Load Rating (maximum) = | E230: =E226 -> 1.65101933
A231: Only the single-lane loaded condition needs to be checked (MBE 6A.5.12.10.3)
A232: Live load Dynamic Load Allowance, IM = | C232: 33(1.0-0.125 DE) ≥ 0% | D232: (LRFD 3.6.2.2-1)
A234: LA Type 3s2
D235: Hint-t | E235: Overlap | F235: ww
A236: Transverse to culvert spans | B236: Wheel (lb) | C236: 8000 | H236: only the single-lane loaded condition needs to be chedked for legal load (MBE 6A.5.12.10.3)
B237: Spacing, sw (ft) | C237: 6 | D237: =(C237-$C$106/12-0.06*2*$D$11/12)/Input!$C$47 -> 4.075362319 | E237: =IF(Input!$C$39<'State Legal Load Rating'!D237, "NO", "YES") -> YES | F237: =IF(Input!$C$39<D237,$C$106/12+Input!$C$47*Input!$C$39+0.06*2*$D$11/12,$C$106/12+C237+Input!$C$47*Input!$C$39+0.06*2*$D$11/12) -> 13.35083333
B238: Wheel (lb) | C238: =C236 -> 8000
D252: Hint-p | E252: Overlap | F252: lw
A253: Parallel to culvert spans | B253: Axle 1 (lb) | C253: 9000
B254: Spacing, sa (ft) | C254: 8 | D254: =(C254-$D$106/12)/Input!$C$47 -> 5.923768116 | E254: =IF(Input!$C$39<'State Legal Load Rating'!D254, "NO", "YES") -> NO | F254: =IF(Input!$C$39<'State Legal Load Rating'!D254,'State Legal Load Rating'!$D$106/12+Input!$C$47*Input!$C$39,'State Legal Load Rating'!$D$106/12+C254+Input!$C$47*Input!$C$39) -> 7.225166667
B255: Axle 2 (lb) | C255: 16000
B256: Spacing, sa (ft) | C256: 4 | D256: =(C256-$D$106/12)/Input!$C$47 -> 2.445507246 | E256: =IF(Input!$C$39<'State Legal Load Rating'!D256, "NO", "YES") -> YES | F256: =IF(Input!$C$39<'State Legal Load Rating'!D256,'State Legal Load Rating'!$D$106/12+Input!$C$47*Input!$C$39,'State Legal Load Rating'!$D$106/12+C256+Input!$C$47*Input!$C$39) -> 11.22516667
B257: Axle 3 (lb) | C257: =C255 -> 16000
B258: Spacing, sa (ft) | C258: 8 | D258: =(C258-$D$106/12)/Input!$C$47 -> 5.923768116 | E258: =IF(Input!$C$39<'State Legal Load Rating'!D258, "NO", "YES") -> NO | F258: =IF(Input!$C$39<'State Legal Load Rating'!D258,'State Legal Load Rating'!$D$106/12+Input!$C$47*Input!$C$39,'State Legal Load Rating'!$D$106/12+C258+Input!$C$47*Input!$C$39) -> 7.225166667
B259: Axle 4 (lb) | C259: =C257 -> 16000
B260: Spacing, sa (ft) | C260: 4 | D260: =(C260-$D$106/12)/Input!$C$47 -> 2.445507246 | E260: =IF(Input!$C$39<'State Legal Load Rating'!D260, "NO", "YES") -> YES | F260: =IF(Input!$C$39<'State Legal Load Rating'!D260,'State Legal Load Rating'!$D$106/12+Input!$C$47*Input!$C$39,'State Legal Load Rating'!$D$106/12+C260+Input!$C$47*Input!$C$39) -> 11.22516667
B261: Axle 5 (lb) | C261: =C259 -> 16000 | H261: Gray shaded areas are axles not considered in analysis because of axle configuration.
B263: Pressure (psf) | C263: Multi-presence Factor (MBE 6A.5.12.10.3) | D263: IM | E263: Pressure (psi)
A264: Single Lane | B264: =IF(E256="NO",C236/($C$117*$E$117),IF(E237="NO",(C255+C257)/2/(F237*F256),IF(E254="NO",(C255+C257)/(F237*F256),IF(Input!C22/12<(24-F256),(C255+C257)/(F237*F256),(C253*(F256-12)/$E$117+C255+C257+C259*(F256-12)/$E$117)/(F237*F256))))) -> 213.5250371 | C264: 1 | D264: =IF(33*(1-0.125*Input!$C$39)/100>0,33*(1-0.125*Input!$C$39)/100,0) -> 0.1134375 | E264: =B264*C264*(1+D264)/144 -> 1.65101933
A265: Two Lanes
A266: Three Lanes
A267: > Three Lanes
A268: Control live load pressure at crown for Load Rating (maximum) = | E268: =E264 -> 1.65101933
A269: Only the single-lane loaded condition needs to be checked (MBE 6A.5.12.10.3)
A270: Live load Dynamic Load Allowance, IM = | C270: 33(1.0-0.125 DE) ≥ 0% | D270: (LRFD 3.6.2.2-1)
A272: LA Type 3-3
D273: Hint-t | E273: Overlap | F273: ww
A274: Transverse to culvert spans | B274: Wheel (lb) | C274: 8000 | H274: only the single-lane loaded condition needs to be chedked for legal load (MBE 6A.5.12.10.3)
B275: Spacing, sw (ft) | C275: 6 | D275: =(C275-$C$107/12-0.06*2*$D$11/12)/Input!$C$47 -> 4.075362319 | E275: =IF(Input!$C$39<'State Legal Load Rating'!D275, "NO", "YES") -> YES | F275: =IF(Input!$C$39<D275,$C$107/12+Input!$C$47*Input!$C$39+0.06*2*$D$11/12,$C$107/12+C275+Input!$C$47*Input!$C$39+0.06*2*$D$11/12) -> 13.35083333
B276: Wheel (lb) | C276: =C274 -> 8000
A291: Parallel to culvert spans | D291: Hint-p | E291: Overlap | F291: lw
B292: Axle 1 (lb) | C292: 12000
B293: Spacing, sa (ft) | C293: 15 | D293: =(C293-$D$107/12)/Input!$C$47 -> 12.01072464 | E293: =IF(Input!$C$39<'State Legal Load Rating'!D293, "NO", "YES") -> NO | F293: =IF(Input!$C$39<'State Legal Load Rating'!D293,'State Legal Load Rating'!$D$107/12+Input!$C$47*Input!$C$39,'State Legal Load Rating'!$D$107/12+C293+Input!$C$47*Input!$C$39) -> 7.225166667 | H293: Gray shaded areas are axles not considered in analysis because of axle configuration.
B294: Axle 2 (lb) | C294: 12000
B295: Spacing, sa (ft) | C295: 4 | D295: =(C295-$D$107/12)/Input!$C$47 -> 2.445507246 | E295: =IF(Input!$C$39<'State Legal Load Rating'!D295, "NO", "YES") -> YES | F295: =IF(Input!$C$39<'State Legal Load Rating'!D295,'State Legal Load Rating'!$D$107/12+Input!$C$47*Input!$C$39,'State Legal Load Rating'!$D$107/12+C295+Input!$C$47*Input!$C$39) -> 11.22516667
B296: Axle 3 (lb) | C296: 12000
B297: Spacing, sa (ft) | C297: 15 | D297: =(C297-$D$107/12)/Input!$C$47 -> 12.01072464 | E297: =IF(Input!$C$39<'State Legal Load Rating'!D297, "NO", "YES") -> NO | F297: =IF(Input!$C$39<'State Legal Load Rating'!D297,'State Legal Load Rating'!$D$107/12+Input!$C$47*Input!$C$39,'State Legal Load Rating'!$D$107/12+C297+Input!$C$47*Input!$C$39) -> 7.225166667
B298: Axle 4 (lb) | C298: 16000
... 131 more rows

Sheet SHV Load Rating
A1: LRFR of Smooth Steel Pipe Structures
A3: A. Design Dimensions
A5: 1. For typical structures, use the actual field measured span for calculations.
A6: 2. For those deflected over 5%, use 2 x the top radius (2 Rt) in lieu of span for calculations.
A8: Then, Span Length used in Load Rating Calculation = | D8: ='Design Load Rating'!D8 -> 8 | E8: ft
A9: Then, Rt used in Load Rating Calculation = | D9: ='Design Load Rating'!D9 -> 4 | E9: ft
B11: Inside radius of the steel pipe, ri = | D11: ='Design Load Rating'!D11 -> 48 | E11: in
B12: Outside radius of the steel pipe, ro = | D12: ='Design Load Rating'!D12 -> 49.065 | E12: in
B13: Mean radius of the steel pipe, r = | D13: ='Design Load Rating'!D13 -> 48.5325 | E13: in
A15: B. Pipe Properties
A17: Mechanical Properties:
B18: Fy = Minimum Yield Point of the Steel | D18: ='Design Load Rating'!D18 -> 33 | E18: ksi
B19: Fu = Minimum Tensile Strength of the Steel | D19: ='Design Load Rating'!D19 -> 45 | E19: ksi
B20: E = Modulus of Elasticity of Steel | D20: ='Design Load Rating'!D20 -> 29000 | E20: ksi
A22: Section Properties:
C23: As (in2/ft) = | D23: ='Design Load Rating'!D23 -> 12.78
C24: I (in4/in) = | D24: ='Design Load Rating'!D24 -> 0.1006624687
A26: C. Capacity:
A28: φ = Resistance Factor for wall area and buckling (LRFD Table 12.5.5-1) | D28: ='Design Load Rating'!D28 -> 1
A29: φloss = Section Properties reduction factor on the basis of metal loss from the materials field evaluation = | D29: ='Design Load Rating'!D29 -> 1
A30: φbkl = Buckling Strength Reduction Factor = ((1-d)/(1+d)2)3 = | D30: ='Design Load Rating'!D30 -> 1 | E30: (NRCS NEH 636, 52-34)
A32: Calculate the qb (buckling capacity of the pipe wall) :
E34: (AWWA Eq 5-7)
A36: Scalar calibration factor to account for some nonlinear effects , Cn = | D36: 0.55
A37: Pipe wall stiffness, EI = | D37: =$D$20*1000*$D$24 -> 2919211.594 | E37: lb.in
A38: Factor to account for variability in stiffness of compacted soil, φsoil = | D38: 0.9
A39: Modulus of soil reaction, E' = | D39: =Input!$C$35 -> 1000 | E39: psi
A40: Modulus correction factor for Poisson's ratio of the soil, kv = | D40: =(1+Input!$C$36)*(1-2*Input!$C$36)/(1-Input!$C$36) -> 0.7428571429
A41: Correction factor for depth of fill, RH = | D41: =11.4/(11+2*$D$13/12/Input!$C$39) -> 0.9090391297
B43: Therefore, | C43: qb = | D43: =$D$28*Input!F15*$D$29*$D$30*1.2*$D$36*$D$37^0.33*($D$38*$D$39*$D$40)^0.67*$D$41/$D$12 -> 129.9395579 | E43: psi
A45: Calculate the σcap (flexural capacity of the pipe wall) :
B50: Therefore, | C50: Tcap = | D50: =$D$28*Input!F15*$D$29*$D$18*$D$23 -> 421.74 | E50: kips/ft
C51: σcap = | D51: =$D$28*Input!$F$15*$D$29*$D$18 -> 33 | E51: ksi
A53: D. Dead Load Analysis:
A54: Calculate the qs (pressure at crown due to live load) :
C56: (AWWA Eq 5-9)
C58: (AWWA Eq 5-3)
B60: Outside diameter of coated pipe (in) , Dc = | D60: =2*$D$12 -> 98.13
B61: Earth load (lb/ft), Wc = | D61: =Input!$C$40*Input!$C$39*$D$60/12 -> 5151.825
B62: Height of Water above Pipe (ft), Hw = | D62: =IF(Input!$C$42="Yes",Input!$C$44,0) -> 0
B63: Water buoyancy factor, Rw = 1-0.33 (Hw/H) | D63: =1-0.33*D62/Input!$C$39 -> 1
B64: Outside diameter of pipe (in), D0 = | D64: =2*$D$12 -> 98.13
B66: Therefore, | C66: qs = | D66: =$D$63*$D$61/12/$D$64 -> 4.375 | E66: psi
A68: Calculate the qw (pressure at crown due to water) :
C70: (AWWA Eq 5-9)
B72: Therefore, | C72: qw = | D72: =Input!$C$43*$D$62/144 -> 0 | E72: psi
A74: Calculate the σS (circumferential stress due to earth cover) :
B75: TE = higher value of : | C75: 1. γs H (S/2) = | D75: =Input!$C$40*Input!$C$39*$D$8/2/1000 -> 2.52 | E75: kips/ft
C76: 2. γs H Rt = | D76: =Input!$C$40*Input!$C$39*$D$9/1000 -> 2.52 | E76: kips/ft
B78: Therefore, | C78: TS = | D78: =MAX($D$75,$D$76) -> 2.52 | E78: kips/ft
C79: σS = TS/As = | D79: =D78/$D$23 -> 0.1971830986 | E79: ksi
A81: Calculate the σW (circumferential stress due to water) :
B82: TE = higher value of : | C82: 1. γw Hw (S/2) = | D82: =Input!$C$43*D62*$D$8/2/1000 -> 0 | E82: kips/ft
C83: 2. γw Hw Rt = | D83: =Input!$C$43*D62*$D$9/1000 -> 0 | E83: kips/ft
B85: Therefore, | C85: TW = | D85: =MAX($D$82,$D$83) -> 0 | E85: kips/ft
C86: σW = TW/As = | D86: =D85/$D$23 -> 0 | E86: ksi
A88: Calculate the σD_bw (Through-Wall Bending Stress)
A90: Ovality | D90: (ALA Eq 4-2)
B92: Deflection lag factor, Dl = | D92: ='Design Load Rating'!D92 -> 1
B93: Bedding constant, K = | D93: ='Design Load Rating'!D93 -> 0.1
B95: Therefore, | C95: Δy/D0 = | D95: =$D$92*$D$93*$D$66/($D$20*1000*$D$24/$D$13^3+0.061*Input!$C$35) -> 0.00505564881
D97: (ALA Eq 4-4)
B99: Therefore, | C99: σD_bw = | D99: =4*$D$20*1000*$D$95*Input!$C$23/(2*$D$12)/1000 -> 6.364769734 | E99: ksi
A101: E. Live Load Analysis:
A103: The surface tire contact area for legal loading (per AASHTO LRFD C3.6.1.2.5):
B104: P (kips) | C104: wt (in) = P/0.8 | D104: lt (in) = 6.4γ(1+IM/100)
A105: NRL | B105: 8.5 | C105: =B105/0.8 -> 10.625 | D105: =6.4*Input!$C$55*(1+$D$137) -> 14.252
A106: SU4 | B106: 8.5 | C106: =B106/0.8 -> 10.625 | D106: =6.4*Input!$C$55*(1+$D$137) -> 14.252
A107: SU5 | B107: 8.5 | C107: =B107/0.8 -> 10.625 | D107: =6.4*Input!$C$55*(1+$D$137) -> 14.252
A108: SU6 | B108: 8.5 | C108: =B108/0.8 -> 10.625 | D108: =6.4*Input!$C$55*(1+$D$137) -> 14.252
A109: SU7 | B109: 8.5 | C109: =B109/0.8 -> 10.625 | D109: =6.4*Input!$C$55*(1+$D$137) -> 14.252
A111: Distribution of wheel loads through earth fills (per AASHTO LRFD 3.6.1.2.6):
A112: 1. Single wheel load Distribution:
B113: ww | E113: lw
B114: H<2 ft | C114: H≥2 ft
B115: 96+1.44S | C115: wt/12+LLDF(H)+0.06Di/12 | E115: lt/12+LLDF(H)
A116: NRL | B116: =(96+1.44*$D$8)/12 -> 8.96 | C116: =C105/12+Input!$C$47*Input!$C$39+0.06*2*$D$11/12 -> 7.402916667 | E116: =D105/12+Input!$C$47*Input!$C$39 -> 7.225166667
A117: SU4 | B117: =(96+1.44*$D$8)/12 -> 8.96 | C117: =C106/12+Input!$C$47*Input!$C$39+0.06*2*$D$11/12 -> 7.402916667 | E117: =D106/12+Input!$C$47*Input!$C$39 -> 7.225166667
A118: SU5 | B118: 8.96 | C118: =C107/12+Input!$C$47*Input!$C$39+0.06*2*$D$11/12 -> 7.402916667 | E118: =D107/12+Input!$C$47*Input!$C$39 -> 7.225166667
A119: SU6 | B119: 8.96 | C119: =C108/12+Input!$C$47*Input!$C$39+0.06*2*$D$11/12 -> 7.402916667 | E119: =D108/12+Input!$C$47*Input!$C$39 -> 7.225166667
A120: SU7 | B120: 8.96 | C120: =C109/12+Input!$C$47*Input!$C$39+0.06*2*$D$11/12 -> 7.402916667 | E120: =D109/12+Input!$C$47*Input!$C$39 -> 7.225166667
A122: 2. Overlap Check for Fill Height, H<2 ft:
A124: For parallel to culver spans, overlap requirement is:
A125: lw≥axial spacing, for minimum axial spacing = 4 ft
B126: LLDF>(4-lt/12)*2
A127: NRL | B127: =(4-D105/12)/2 -> 1.406166667
A128: SU4 | B128: =(4-D106/12)/2 -> 1.406166667
A129: SU5 | B129: =(4-D107/12)/2 -> 1.406166667
A130: SU6 | B130: =(4-D108/12)/2 -> 1.406166667
A131: SU7 | B131: =(4-D109/12)/2 -> 1.406166667 | C131: which is greater than 1.15 specified in LRFD Table 3.6.1.2.6a.
D133: Therefore overlap is not considered for Fill Height, H<2 ft
A135: NRL
B136: Pressure (psf) | C136: Multi-presence Factor (MBE 6A.5.12.10.3) | D136: IM | E136: Pressure (psi)
A137: Single Lane | B137: =17000/($B$116*$E$116) -> 262.5989844 | C137: 1 | D137: =IF(33*(1-0.125*Input!$C$39)/100>0,33*(1-0.125*Input!$C$39)/100,0) -> 0.1134375 | E137: =B137*C137*(1+D137)/144 -> 2.030469143
A138: Two Lanes
A139: Three Lanes
A140: > Three Lanes
A141: Control live load pressure at crown for Load Rating (maximum) = | E141: =E137 -> 2.030469143
A142: Only the single-lane loaded condition needs to be checked (MBE 6A.5.12.10.3)
A143: Live load Dynamic Load Allowance, IM = | C143: 33(1.0-0.125 DE) ≥ 0% | D143: (LRFD 3.6.2.2-1)
A145: SU4
B146: Pressure (psf) | C146: Multi-presence Factor (MBE 6A.5.12.10.3) | D146: IM | E146: Pressure (psi)
A147: Single Lane | B147: =17000/($B$117*$E$117) -> 262.5989844 | C147: 1 | D147: =IF(33*(1-0.125*Input!$C$39)/100>0,33*(1-0.125*Input!$C$39)/100,0) -> 0.1134375 | E147: =B147*C147*(1+D147)/144 -> 2.030469143
A148: Two Lanes
A149: Three Lanes
A150: > Three Lanes
A151: Control live load pressure at crown for Load Rating (maximum) = | E151: =E147 -> 2.030469143
A152: Only the single-lane loaded condition needs to be checked (MBE 6A.5.12.10.3)
A153: Live load Dynamic Load Allowance, IM = | C153: 33(1.0-0.125 DE) ≥ 0% | D153: (LRFD 3.6.2.2-1)
A155: SU5
B156: Pressure (psf) | C156: Multi-presence Factor (MBE 6A.5.12.10.3) | D156: IM | E156: Pressure (psi)
A157: Single Lane | B157: =17000/($B$118*$E$118) -> 262.5989844 | C157: 1 | D157: =IF(33*(1-0.125*Input!$C$39)/100>0,33*(1-0.125*Input!$C$39)/100,0) -> 0.1134375 | E157: =B157*C157*(1+D157)/144 -> 2.030469143
A158: Two Lanes
A159: Three Lanes
A160: > Three Lanes
A161: Control live load pressure at crown for Load Rating (maximum) = | E161: =E157 -> 2.030469143
A162: Only the single-lane loaded condition needs to be checked (MBE 6A.5.12.10.3)
A163: Live load Dynamic Load Allowance, IM = | C163: 33(1.0-0.125 DE) ≥ 0% | D163: (LRFD 3.6.2.2-1)
A165: SU6
B166: Pressure (psf) | C166: Multi-presence Factor (MBE 6A.5.12.10.3) | D166: IM | E166: Pressure (psi)
A167: Single Lane | B167: =17000/($B$119*$E$119) -> 262.5989844 | C167: 1 | D167: =IF(33*(1-0.125*Input!$C$39)/100>0,33*(1-0.125*Input!$C$39)/100,0) -> 0.1134375 | E167: =B167*C167*(1+D167)/144 -> 2.030469143
A168: Two Lanes
A169: Three Lanes
A170: > Three Lanes
A171: Control live load pressure at crown for Load Rating (maximum) = | E171: =E167 -> 2.030469143
A172: Only the single-lane loaded condition needs to be checked (MBE 6A.5.12.10.3)
A173: Live load Dynamic Load Allowance, IM = | C173: 33(1.0-0.125 DE) ≥ 0% | D173: (LRFD 3.6.2.2-1)
A175: SU7
B176: Pressure (psf) | C176: Multi-presence Factor (MBE 6A.5.12.10.3) | D176: IM | E176: Pressure (psi)
A177: Single Lane | B177: =17000/($B$120*$E$120) -> 262.5989844 | C177: 1 | D177: =IF(33*(1-0.125*Input!$C$39)/100>0,33*(1-0.125*Input!$C$39)/100,0) -> 0.1134375 | E177: =B177*C177*(1+D177)/144 -> 2.030469143
A178: Two Lanes
A179: Three Lanes
A180: > Three Lanes
A181: Control live load pressure at crown for Load Rating (maximum) = | E181: =E177 -> 2.030469143
A182: Only the single-lane loaded condition needs to be checked (MBE 6A.5.12.10.3)
A183: Live load Dynamic Load Allowance, IM = | C183: 33(1.0-0.125 DE) ≥ 0% | D183: (LRFD 3.6.2.2-1)
A185: 3. Overlap Check for Fill Height, H≥2 ft:
C186: For H<Hint-t
F187: (LFRD 3.6.1.2.6b-2)
B189: LRFD 3.6.1.2.6b-1 | C189: For H≥Hint-t
F191: (LFRD 3.6.1.2.6b-3)
C193: For H<Hint-p
F194: (LFRD 3.6.1.2.6b-5)
B196: LRFD 3.6.1.2.6b-4 | C196: For H≥Hint-p
F197: (LFRD 3.6.1.2.6b-6)
A199: NRL
D200: Hint-t | E200: Overlap | F200: ww
A201: Transverse to culvert spans | B201: Wheel (lb) | C201: 8500 | H201: only the single-lane loaded condition needs to be chedked for legal load (MBE 6A.5.12.10.3)
B202: Spacing, sw (ft) | C202: 6 | D202: =(C202-$C$105/12-0.06*2*$D$11/12)/Input!$C$47 -> 4.030072464 | E202: =IF(Input!$C$39<'SHV Load Rating'!D202, "NO", "YES") -> YES | F202: =IF(Input!$C$39<D202,$C$105/12+Input!$C$47*Input!$C$39+0.06*2*$D$11/12,$C$105/12+C202+Input!$C$47*Input!$C$39+0.06*2*$D$11/12) -> 13.40291667
B203: Wheel (lb) | C203: =C201 -> 8500
D218: Hint-p | E218: Overlap | F218: lw
A219: Parallel to culvert spans | B219: Axle 1 (lb) | C219: 6000
B220: Spacing, sa (ft) | C220: 6 | D220: =(C220-$D$105/12)/Input!$C$47 -> 4.184637681 | E220: =IF(Input!$C$39<'SHV Load Rating'!D220, "NO", "YES") -> YES | F220: =IF(Input!$C$39<'SHV Load Rating'!D220,'SHV Load Rating'!$D$105/12+Input!$C$47*Input!$C$39,'SHV Load Rating'!$D$105/12+C220+Input!$C$47*Input!$C$39) -> 13.22516667 | H220: Gray shaded areas are axles not considered in analysis because of axle configuration.
B221: Axle 2 (lb) | C221: 8000
B222: Spacing, sa (ft) | C222: 4 | D222: =(C222-$D$105/12)/Input!$C$47 -> 2.445507246 | E222: =IF(Input!$C$39<'SHV Load Rating'!D222, "NO", "YES") -> YES | F222: =IF(Input!$C$39<'SHV Load Rating'!D222,'SHV Load Rating'!$D$105/12+Input!$C$47*Input!$C$39,'SHV Load Rating'!$D$105/12+C222+Input!$C$47*Input!$C$39) -> 11.22516667
B223: Axle 3 (lb) | C223: 8000
B224: Spacing, sa (ft) | C224: 4 | D224: =(C224-$D$105/12)/Input!$C$47 -> 2.445507246 | E224: =IF(Input!$C$39<'SHV Load Rating'!D224, "NO", "YES") -> YES | F224: =IF(Input!$C$39<'SHV Load Rating'!D224,'SHV Load Rating'!$D$105/12+Input!$C$47*Input!$C$39,'SHV Load Rating'!$D$105/12+C224+Input!$C$47*Input!$C$39) -> 11.22516667
B225: Axle 4 (lb) | C225: 17000
B226: Spacing, sa (ft) | C226: 4 | D226: =(C226-$D$105/12)/Input!$C$47 -> 2.445507246 | E226: =IF(Input!$C$39<'SHV Load Rating'!D226, "NO", "YES") -> YES | F226: =IF(Input!$C$39<'SHV Load Rating'!D226,'SHV Load Rating'!$D$105/12+Input!$C$47*Input!$C$39,'SHV Load Rating'!$D$105/12+C226+Input!$C$47*Input!$C$39) -> 11.22516667
B227: Axle 5 (lb) | C227: 17000
B228: Spacing, sa (ft) | C228: 4 | D228: =(C228-$D$105/12)/Input!$C$47 -> 2.445507246 | E228: =IF(Input!$C$39<'SHV Load Rating'!D228, "NO", "YES") -> YES | F228: =IF(Input!$C$39<'SHV Load Rating'!D228,'SHV Load Rating'!$D$105/12+Input!$C$47*Input!$C$39,'SHV Load Rating'!$D$105/12+C228+Input!$C$47*Input!$C$39) -> 11.22516667
B229: Axle 6 (lb) | C229: 8000
B230: Spacing, sa (ft) | C230: 4 | D230: =(C230-$D$105/12)/Input!$C$47 -> 2.445507246 | E230: =IF(Input!$C$39<'SHV Load Rating'!D230, "NO", "YES") -> YES | F230: =IF(Input!$C$39<'SHV Load Rating'!D230,'SHV Load Rating'!$D$105/12+Input!$C$47*Input!$C$39,'SHV Load Rating'!$D$105/12+C230+Input!$C$47*Input!$C$39) -> 11.22516667
B231: Axle 7 (lb) | C231: 8000 | H231: Gray shaded areas are axles not considered in analysis because of axle configuration.
B232: Spacing, sa (ft) | C232: 4 | D232: =(C232-$D$105/12)/Input!$C$47 -> 2.445507246 | E232: =IF(Input!$C$39<'SHV Load Rating'!D232, "NO", "YES") -> YES | F232: =IF(Input!$C$39<'SHV Load Rating'!D232,'SHV Load Rating'!$D$105/12+Input!$C$47*Input!$C$39,'SHV Load Rating'!$D$105/12+C232+Input!$C$47*Input!$C$39) -> 11.22516667
B233: Axle 8 (lb) | C233: 8000
B235: Pressure (psf) | C235: Multi-presence Factor | D235: IM | E235: Pressure (psi)
A236: Single Lane | B236: =IF(E226="NO",C201/($C$116*$E$116),IF(E202="NO",IF(Input!C22/12<=(16-F226),((C225+C227)/2)/(F202*F226),((C223*(F226-8)/$E$116+C225+C227+C229*(F226-8)/$E$116)/2)/(F202*F226)),IF(Input!C22/12<=(16-F226),(C225+C227)/(F202*F226),(C223*(F226-8)/$E$116+C225+C227+C229*(F226-8)/$E$116)/(F202*F226)))) -> 273.4601537 | C236: 1 | D236: =IF(33*(1-0.125*Input!$C$39)/100>0,33*(1-0.125*Input!$C$39)/100,0) -> 0.1134375 | E236: =B236*C236*(1+D236)/144 -> 2.11444993
A237: Two Lanes
A238: Three Lanes
A239: > Three Lanes
A240: Control live load pressure at crown for Load Rating (maximum) = | E240: =E236 -> 2.11444993
A241: Only the single-lane loaded condition needs to be checked (MBE 6A.5.12.10.3)
A242: Live load Dynamic Load Allowance, IM = | C242: 33(1.0-0.125 DE) ≥ 0% | D242: (LRFD 3.6.2.2-1)
A244: SU4
D245: Hint-t | E245: Overlap | F245: ww
A246: Transverse to culvert spans | B246: Wheel (lb) | C246: 8500 | H246: only the single-lane loaded condition needs to be chedked for legal load (MBE 6A.5.12.10.3)
B247: Spacing, sw (ft) | C247: 6 | D247: =(C247-$C$106/12-0.06*2*$D$11/12)/Input!$C$47 -> 4.030072464 | E247: =IF(Input!$C$39<'SHV Load Rating'!D247, "NO", "YES") -> YES | F247: =IF(Input!$C$39<D247,$C$106/12+Input!$C$47*Input!$C$39+0.06*2*$D$11/12,$C$106/12+C247+Input!$C$47*Input!$C$39+0.06*2*$D$11/12) -> 13.40291667
B248: Wheel (lb) | C248: =C246 -> 8500
D262: Hint-p | E262: Overlap | F262: lw
A263: Parallel to culvert spans | B263: Axle 1 (lb) | C263: 12000
B264: Spacing, sa (ft) | C264: 10 | D264: =(C264-$D$106/12)/Input!$C$47 -> 7.662898551 | E264: =IF(Input!$C$39<'SHV Load Rating'!D264, "NO", "YES") -> NO | F264: =IF(Input!$C$39<'SHV Load Rating'!D264,'SHV Load Rating'!$D$106/12+Input!$C$47*Input!$C$39,'SHV Load Rating'!$D$106/12+C264+Input!$C$47*Input!$C$39) -> 7.225166667 | H264: Gray shaded areas are axles not considered in analysis because of axle configuration.
B265: Axle 2 (lb) | C265: 8000
B266: Spacing, sa (ft) | C266: 4 | D266: =(C266-$D$106/12)/Input!$C$47 -> 2.445507246 | E266: =IF(Input!$C$39<'SHV Load Rating'!D266, "NO", "YES") -> YES | F266: =IF(Input!$C$39<'SHV Load Rating'!D266,'SHV Load Rating'!$D$106/12+Input!$C$47*Input!$C$39,'SHV Load Rating'!$D$106/12+C266+Input!$C$47*Input!$C$39) -> 11.22516667
B267: Axle 3 (lb) | C267: 17000
B268: Spacing, sa (ft) | C268: 4 | D268: =(C268-$D$106/12)/Input!$C$47 -> 2.445507246 | E268: =IF(Input!$C$39<'SHV Load Rating'!D268, "NO", "YES") -> YES | F268: =IF(Input!$C$39<'SHV Load Rating'!D268,'SHV Load Rating'!$D$106/12+Input!$C$47*Input!$C$39,'SHV Load Rating'!$D$106/12+C268+Input!$C$47*Input!$C$39) -> 11.22516667
B269: Axle 4 (lb) | C269: =C267 -> 17000
B271: Pressure (psf) | C271: Multi-presence Factor | D271: IM | E271: Pressure (psi)
A272: Single Lane | B272: =IF(E268="NO",C246/($C$117*$E$117),IF(E247="NO",IF(Input!C22/12<=(16-F268), ((C267+C269)/2)/(F247*F268),((C265*(F268-8)/$E$117+C267+C269)/2)/(F247*F268)),IF(Input!C22/12<=(16-F268),(C267+C269)/(F247*F268),(C265*(F268-8)/$E$117+C267+C269)/(F247*F268)))) -> 249.7244471 | C272: 1 | D272: =IF(33*(1-0.125*Input!$C$39)/100>0,33*(1-0.125*Input!$C$39)/100,0) -> 0.1134375 | E272: =B272*C272*(1+D272)/144 -> 1.930920584
A273: Two Lanes
A274: Three Lanes
A275: > Three Lanes
A276: Control live load pressure at crown for Load Rating (maximum) = | E276: =E272 -> 1.930920584
A277: Only the single-lane loaded condition needs to be checked (MBE 6A.5.12.10.3)
A278: Live load Dynamic Load Allowance, IM = | C278: 33(1.0-0.125 DE) ≥ 0% | D278: (LRFD 3.6.2.2-1)
A280: SU5
D281: Hint-t | E281: Overlap | F281: ww
A282: Transverse to culvert spans | B282: Wheel (lb) | C282: 8500 | H282: only the single-lane loaded condition needs to be chedked for legal load (MBE 6A.5.12.10.3)
B283: Spacing, sw (ft) | C283: 6 | D283: =(C283-$C$107/12-0.06*2*$D$11/12)/Input!$C$47 -> 4.030072464 | E283: =IF(Input!$C$39<'SHV Load Rating'!D283, "NO", "YES") -> YES | F283: =IF(Input!$C$39<D283,$C$107/12+Input!$C$47*Input!$C$39+0.06*2*$D$11/12,$C$107/12+C283+Input!$C$47*Input!$C$39+0.06*2*$D$11/12) -> 13.40291667
B284: Wheel (lb) | C284: =C282 -> 8500
... 141 more rows

Sheet Summary
A2: Bridge Load Rating Summary Sheet
A3: Bridge Data
A5: District | B5: =Input!B3 -> 2 | D5: Structure Number | E5: =Input!E3 -> 2264300100701 | H5: Bridge Name | I5: =Input!K3 -> Drain Canal
A6: Parish | B6: =Input!B4 -> 26 | D6: Recall Number | E6: =Input!E4 -> 20459 | H6: Inspection Date | I6: =Input!K4 -> 02/12/2018
A7: Route | B7: =Input!B5 -> LA 3139 | D7: Year Built | E7: =Input!E5 -> 1986 | H7: Overall | I7: =Input!K5 -> 7
A8: Bridge Posting | B8: =Input!B6 -> - | D8: Design Load | E8: =Input!E6 -> - | H8: Deck | I8: =Input!K6 -> N
A9: Bridge Type | B9: =Input!B7 -> STLPIP | D9: Roadway Width | E9: =Input!E7 -> 38 | H9: Super | I9: =Input!K7 -> N
A10: Bridge Length | B10: =Input!B8 -> 25 | D10: Plan Location | H10: Sub | I10: =Input!K8 -> N
A11: Standard Plan | B11: =Input!B9 -> 
A13: Bridge/Culvert Load Rating Summary
A15: Dead Load | E15: LRFR Evaluation Factors | H15: Traffic
A16: Wearing Surface Thickness (in) | E16: Condition Factor, super (φc) | G16: =Input!F14 -> - | H16: ADTT (one way) | I16: 200
A17: Wearing Surface Type | E17: Condition Factor, sub (φc)
A18: Non-Structural Attachments | D18: =Input!D16 -> - | E18: System Factor, super (φs) | G18: =Input!F15 -> 1
A19: Fill Thickness (in) | D19: =Input!D14 -> 63 | E19: System Factor, sub (φs)
A21: Vehicle Type | B21: GVW (kips) | C21: Superstructure/Deck/Culvert | G21: Substructure
C22: Rating Factor | D22: Rating Weight (tons) | E22: Controlling Member | F22: Controlling Load Effect | G22: Rating Factor | H22: Posting Weight (tons) | I22: Controlling Member | K22: Controlling Load Effect
A24: HL-93 (INV) | B24: N/A | C24: =MIN('Design Load Rating'!$D$317:$D$318) -> 2.659521152
A25: HL-93 (OPR) | B25: N/A | C25: =MIN('Design Load Rating'!$D$319:$D$320) -> 3.44752742
A26: LADV-11(INV) | B26: N/A
A27: LA Type 3 | B27: 41 | C27: ='State Legal Load Rating'!C487 -> 4.079475093 | D27: =+Calcs!G20 -> 83.62923941 | H27: =IF(ISNUMBER(G27),Calcs!M20,"") -> 
A28: LA Type 3S2 | B28: 73 | C28: ='State Legal Load Rating'!C488 -> 4.079475093 | D28: =+Calcs!G26 -> 148.9008409 | H28: =IF(ISNUMBER(G28),Calcs!M21,"") -> 
A29: Type 3-3 | B29: 80 | C29: ='State Legal Load Rating'!C489 -> 4.662257249 | D29: =+Calcs!G27 -> 186.49029 | H29: =IF(ISNUMBER(G29),Calcs!M22,"") -> 
A30: LA Type 6 | B30: 80 | C30: ='State Legal Load Rating'!C490 -> 3.562604538 | D30: =+Calcs!G28 -> 142.5041815 | H30: =IF(ISNUMBER(G30),Calcs!M23,"") -> 
A31: LA Type 8 | B31: 88 | C31: ='State Legal Load Rating'!C491 -> 3.562604538 | D31: =+Calcs!G29 -> 156.7545997 | H31: =IF(ISNUMBER(G31),Calcs!M24,"") -> 
A32: NRL | B32: 80 | C32: ='SHV Load Rating'!C496 -> 3.185363787 | D32: =+Calcs!G19 -> 83.62923941 | H32: =IF(ISNUMBER(G32),Calcs!M25,"") -> 
A33: SU4 | B33: 54 | C33: ='SHV Load Rating'!C497 -> 3.488124934 | D33: =+Calcs!G21 -> 94.17937322 | H33: =IF(ISNUMBER(G33),Calcs!M26,"") -> 
A34: SU5 | B34: 62 | C34: ='SHV Load Rating'!C498 -> 3.488124934 | D34: =+Calcs!G22 -> 108.131873 | H34: =IF(ISNUMBER(G34),Calcs!M27,"") -> 
A35: SU6 | B35: 69.5 | C35: ='SHV Load Rating'!C499 -> 3.185363787 | D35: =+Calcs!G23 -> 110.6913916 | H35: =IF(ISNUMBER(G35),Calcs!M28,"") -> 
A36: SU7 | B36: 77.5 | C36: ='SHV Load Rating'!C500 -> 3.185363787 | D36: =+Calcs!G24 -> 123.4328467 | H36: =IF(ISNUMBER(G36),Calcs!M29,"") -> 
A37: Lane-Type I | B37: N/A
A38: Lane Type II | B38: N/A
A43: Posting Analysis Summary | F43: Please Check the following boxes that apply:
G44: Plans do not exist
A45: Governing Rating Factor | D45: =Calcs!F31 -> 3.562604538 | G45: Exterior girder controls the load rating
A46: Governing Load Model | D46: =+Calcs!B31 -> LA Type 6 | G46: As-designed rating
A47: Recommended Posting Load | D47: =+Calcs!H31 -> No Limit | G47: Striped lane rating
A50: QC/QA
A52: Rated By:
A53: Checked By: | E53: Design Project Number:
A54: QA By: | E54: Rating Software:
A55: Date Rated:
A57: NOTES

Sheet Modulus of Soil Reaction

Sheet Calcs (hidden)
B2: Posting Sign Table
B3: Group A | C3: Group B | D3: Sign # | E3: Post Sign
B4: 0 | C4: 0 | D4: 1 | E4: Closed
B5: 3 | C5: 3 | D5: 2 | E5: 3
B6: 4 | C6: 4 | D6: 3 | E6: 4
B7: 5 | C7: 5 | D7: 4 | E7: 5
B8: 10 | C8: 15 | D8: 5 | E8: 10-15
B9: 15 | C9: 25 | D9: 6 | E9: 15-25
B10: 20 | C10: 35 | D10: 7 | E10: 20-35
B11: 25 | C11: 40 | D11: 8 | E11: 25-40
B12: <=25 | C12: >40 | D12: 9 | E12: 25-NL
B13: <=30 | C13: >40 | D13: 10 | E13: 30-NL
B14: <=35 | C14: >40 | D14: 11 | E14: 35-NL
B15: >35 | C15: >40 | D15: 12 | E15: No Limit
B18: Vehicle Type | C18: GVW (kips) | D18: Super RF | E18: Sub RF | F18: Min RF | G18: Post Weight | H18: Post Sign | I18: Sign # | K18: WT IF RF<1 | M18: Sub WT
A19: Group A | B19: NRL | C19: 80 | D19: =+Summary!C32 -> 3.185363787 | E19: =+Summary!G32 -> 0 | F19: =IF(E19=0,D19,MIN(D19:E19)) -> 3.185363787 | G19: =PostingWeight(F20,C20) -> 83.62923941 | M19: =INT((IF(E19<0.3,0,IF(AND(E19>=0.3,E19<1),(C19/(2*0.7))*(E19-0.3),IF(E19>=1,(C19/2)*(E19),"error")))*100+0.5))/100 -> 0
B20: LA Type 3 | C20: 41 | D20: =Summary!C27 -> 4.079475093 | E20: =Summary!G27 -> 0 | F20: =IF(E20=0,D20,MIN(D20:E20)) -> 4.079475093 | G20: =PostingWeight(F20,C20) -> 83.62923941 | H20: =postingsignA(G20,F20,MinRatingB) -> No Limit | I20: =INDEX($D$4:$D$15,MATCH($H20,$E$4:$E$15,0)) -> 12 | K20: =IF(F20<1,PostingWeight(F20,C20), 40) -> 40 | M20: =INT((IF(E20<0.3,0,IF(AND(E20>=0.3,E20<1),(C20/(2*0.7))*(E20-0.3),IF(E20>=1,(C20/2)*(E20),"error")))*100+0.5))/100 -> 0
B21: SU4 | C21: 54 | D21: =Summary!C33 -> 3.488124934 | E21: =Summary!G33 -> 0 | F21: =IF(E21=0,D21,MIN(D21:E21)) -> 3.488124934 | G21: =PostingWeight(F21,C21) -> 94.17937322 | H21: =postingsignA(G21,F21,MinRatingB) -> No Limit | I21: =INDEX($D$4:$D$15,MATCH($H21,$E$4:$E$15,)) -> 12 | K21: =IF(F21<1,PostingWeight(F21,C21), 40) -> 40 | M21: =INT((IF(E21<0.3,0,IF(AND(E21>=0.3,E21<1),(C21/(2*0.7))*(E21-0.3),IF(E21>=1,(C21/2)*(E21),"error")))*100+0.5))/100 -> 0
B22: SU5 | C22: 62 | D22: =Summary!C34 -> 3.488124934 | E22: =Summary!G34 -> 0 | F22: 3.488124934 | G22: =PostingWeight(F22,C22) -> 108.131873 | H22: =postingsignA(G22,F22,MinRatingB) -> No Limit | I22: =INDEX($D$4:$D$15,MATCH($H22,$E$4:$E$15,)) -> 12 | K22: =IF(F22<1,PostingWeight(F22,C22), 40) -> 40 | M22: 0
B23: SU6 | C23: 69.5 | D23: =Summary!C35 -> 3.185363787 | E23: =Summary!G35 -> 0 | F23: 3.185363787 | G23: =PostingWeight(F23,C23) -> 110.6913916 | H23: =postingsignA(G23,F23,MinRatingB) -> No Limit | I23: =INDEX($D$4:$D$15,MATCH($H23,$E$4:$E$15,)) -> 12 | K23: =IF(F23<1,PostingWeight(F23,C23), 40) -> 40 | M23: 0
B24: SU7 | C24: 77.5 | D24: =Summary!C36 -> 3.185363787 | E24: =Summary!G36 -> 0 | F24: 3.185363787 | G24: =PostingWeight(F24,C24) -> 123.4328467 | H24: =postingsignA(G24,F24,MinRatingB) -> No Limit | I24: =INDEX($D$4:$D$15,MATCH($H24,$E$4:$E$15,)) -> 12 | K24: =IF(F24<1,PostingWeight(F24,C24), 40) -> 40 | M24: 0
B25: =IF(F25>=1,INDEX(B20:B24,MATCH(F25,F20:F24,0)),INDEX(B20:B24,MATCH($G$25,$G20:$G24,0))) -> SU6 | F25: =MIN(F20:F24) -> 3.185363787 | G25: =IF(I25=12,INDEX(G20:G24,MATCH(F25,F20:F24,0)),K25) -> 110.6913916 | H25: =INDEX(H20:H24,MATCH($G$25,$G20:$G24,0)) -> No Limit | I25: =+MIN(I20:I24) -> 12 | K25: =IF(I25=12,0,IF(MAX(K20:K24)=0,0,SMALL(K20:K24,COUNTIF(K20:K24,0)+1))) -> 0
A26: Group B | B26: LA Type 3S2 | C26: 73 | D26: =Summary!C28 -> 4.079475093 | E26: =Summary!G28 -> 0 | F26: =IF(E26=0,D26,MIN(D26:E26)) -> 4.079475093 | G26: =PostingWeight(F26,C26) -> 148.9008409 | H26: =postingsignB(G26, F26) -> No Limit | I26: =INDEX($D$4:$D$15,MATCH($H26,$E$4:$E$15,)) -> 12 | K26: =IF(F26<1,PostingWeight(F26,C26), 40) -> 40 | M26: 0
B27: Type 3-3 | C27: 80 | D27: =Summary!C29 -> 4.662257249 | E27: =Summary!G29 -> 0 | F27: 4.662257249 | G27: =PostingWeight(F27,C27) -> 186.49029 | H27: =postingsignB(G27, F27) -> No Limit | I27: =INDEX($D$4:$D$15,MATCH($H27,$E$4:$E$15,)) -> 12 | K27: =IF(F27<1,PostingWeight(F27,C27), 40) -> 40 | M27: 0
B28: LA Type 6 | C28: 80 | D28: =Summary!C30 -> 3.562604538 | E28: =Summary!G30 -> 0 | F28: 3.562604538 | G28: =PostingWeight(F28,C28) -> 142.5041815 | H28: =postingsignB(G28, F28) -> No Limit | I28: =INDEX($D$4:$D$15,MATCH($H28,$E$4:$E$15,)) -> 12 | K28: =IF(F28<1,PostingWeight(F28,C28), 40) -> 40 | M28: 0
B29: LA Type 8 | C29: 88 | D29: =Summary!C31 -> 3.562604538 | E29: =Summary!G31 -> 0 | F29: 3.562604538 | G29: =PostingWeight(F29,C29) -> 156.7545997 | H29: =postingsignB(G29, F29) -> No Limit | I29: =INDEX($D$4:$D$15,MATCH($H29,$E$4:$E$15,)) -> 12 | K29: =IF(F29<1,PostingWeight(F29,C29), 40) -> 40 | M29: 0
B30: =IF(F30>=1,INDEX(B26:B29,MATCH(F30,F26:F30,0)),INDEX(B26:B29,MATCH($G$30,$G26:$G29,0))) -> LA Type 6 | F30: =MIN(F26:F29) -> 3.562604538 | G30: =IF(I30=12,INDEX(G26:G29,MATCH(F30,F26:F29,0)),K30) -> 142.5041815 | H30: =INDEX(H26:H29,MATCH($G$30,$G26:$G29,0)) -> No Limit | I30: =MIN(I26:I29) -> 12 | K30: =IF(I30=12,0,IF(MAX(K26:K29)=0,0,SMALL(K26:K29,COUNTIF(K26:K29,0)+1))) -> 0
A31: Critical | B31: =IF(F31>=1,INDEX(B20:B29,MATCH(F31,F20:F29,0)),INDEX(B20:B29,MATCH($G$31,$G20:$G29,0))) -> LA Type 6 | F31: =IF(I31=9,SMALL(F$20:F$29,COUNTIF($F$20:$F$29,0)+1),INDEX(F20:F29,MATCH($G$31,$G20:$G29,0))) -> 3.562604538 | G31: =IF(I25<I30,G25,G30) -> 142.5041815 | H31: =INDEX(H20:H29,MATCH($I$31,$I20:$I29,0)) -> No Limit | I31: =MIN(I25,I30) -> 12

Sheet Options (hidden)
A1: Pipe Shape
A2: Circular
A6: Coating and Lining Type
A7: Flexible Lining and Coating
A11: Water Load Options
A12: Yes
A13: No
